Cogmind - Beta 14 @@@ ROGUE MODE // 2025.03.25 @ 14:37:41 Player: Crud Result: Destroyed by as-70070 with Assembled Rifle Performance ------------- Evolutions (0) 0 Regions Visited (2) 400 Robots Destroyed (13) 65 Value Destroyed (232) 232 Prototype IDs (0) 0 Alien Tech Used (0) 0 Bonus (0) 0 TOTAL SCORE: 697 Bonus ------- None Cogmind --------- Core Integrity 0/250 Matter 202/300 Energy 116/250 System Corruption 0% Temperature Cool (0) Movement Flying (117) Ox1 Location -10/Mines Parts ------- > --- POWER (1) -------- Ion Engine > --- PROPULSION (2) --- Flight Unit Flight Unit > --- UTILITY (2) ------ Small Storage Unit > --- WEAPON (2) ------- (None) > --- INVENTORY (8) ---- Flight Unit Improved Heat Sink Medium Matter Pod (47) Core Shielding Utility Shielding Peak State ------------ > --- POWER ------------ Ion Engine > --- PROPULSION ------- Aluminum Leg Aluminum Leg > --- UTILITY ---------- Small Storage Unit Small Storage Unit > --- WEAPON ----------- Beam Cannon Grenade Launcher > --- INVENTORY -------- Ion Engine Aluminum Leg Flight Unit Flight Unit Improved Heat Sink Medium Matter Pod Core Shielding Utility Shielding [Rating: 8] Favorites ----------- Power Ion Engine Engine Ion Engine Propulsion Aluminum Leg Leg Aluminum Leg Flight Unit Flight Unit Utility Small Storage Unit Storage Small Storage Unit Weapon Grenade Launcher Energy Cannon Beam Cannon Ballistic Gun Light Assault Rifle Launcher Grenade Launcher Build | -11 -10 -10 ------- Run | Yrd Mat Min Slots Evolved . | . . . Power . | . . . Propulsion . | . . . Utility . | . . . Weapon . | . . . Parts Attached 8 | . 3 5 Power 1 | . . 1 Engine 1 | . . 1 Core . | . . . Reactor . | . . . Propulsion 4 | . . 4 Treads . | . . . Leg 2 | . . 2 Wheel . | . . . Hover . | . . . Flight 2 | . . 2 Utility 1 | . 1 . Device . | . . . Storage 1 | . 1 . Processor . | . . . Hackware . | . . . Protection . | . . . Artifact . | . . . Weapon 2 | . 2 . Energy Gun . | . . . Energy Cannon 1 | . 1 . Ballistic Gun . | . . . Ballistic Cannon . | . . . Launcher 1 | . 1 . Special Weapon . | . . . Impact Weapon . | . . . Slashing Weapon . | . . . Piercing Weapon . | . . . Special Melee Weapon . | . . . Unidentified Prototypes . | . . . Parts Lost 5 | . . 5 Power 1 | . . 1 Propulsion 2 | . . 2 Utility . | . . . Weapon 2 | . . 2 Highest Loss Streak 5 | . . 5 To Critical Strikes . | . . . Average Slot Usage (%) 98 | . 97 99 Engine 13 | . 14 13 Leg 27 | . 28 27 Storage 27 | . 25 28 Energy Cannon 9 | . 4 13 Ballistic Gun 6 | . 14 . Launcher 11 | . 9 13 Peak Build Rating 8 | 6 7 8 Average Rating 7 | 6 6 7 On Entrance 6 | 6 6 7 Naked Turns . | . . . Heaviest Build 21 | 13 21 21 Greatest Support 20 | 20 20 20 Greatest Overweight (x) 1 | . 1 1 Average Overweight (x) . | . . . Largest Inventory Capacity 8 | 8 8 8 Average Capacity 8 | 8 8 8 Most Carried 8 | 6 8 8 Average Carried 7 | 6 7 7 Final Capacity 8 | 8 8 8 Final Carried 8 | 6 8 5 Class Distribution -------------------- 100% | Mutant Dominant Class ---------------- Mutant | -10/Materials Mutant | -10/Mines Resources | -11 -10 -10 ----------- Run | Yrd Mat Min Matter Collected 364 | 200 67 97 Remotely . | . . . Salvage Created 209 | . 67 142 Parts 23 | . 10 13 Haulers Intercepted . | . . . Recyclers Shooed . | . . . Parts Field Recycled . | . . . Retrieved Matter . | . . . Parts Self-Destructed . | . . . Prevented . | . . . Kills | -11 -10 -10 ------- Run | Yrd Mat Min Combat Hostiles Destroyed 12 | . 3 9 Guns 3 | . 3 . Cannons 4 | . . 4 AOE 5 | . . 5 Classes Destroyed 4 | . 2 2 Watcher 1 | . 1 . Swarmer 9 | . 3 6 Grunt 2 | . . 2 Sentry 1 | . . 1 Best Kill Streak 3 | . 3 3 Combat Bots Only 3 | . 3 3 Max Kills in Single Turn 2 | . 1 2 Gunslinging . | . . . Exploded 2 | . . 2 Melee . | . . . Uniques/NPCs Destroyed . | . . . Combat | -11 -10 -10 -------- Run | Yrd Mat Min Hostile Shots Fired 101 | . 38 63 Missed 33 | . 12 21 Damage Taken 811 | . 199 612 Core 254 | . 51 203 Absorbed by Shields . | . . . Core Remaining (%) 100 | 100 . . Volleys Fired 40 | . 20 20 Largest 2 | . 2 2 Hottest 90 | . 40 90 Shots Fired 67 | . 38 29 Gun 38 | . 38 . Cannon 20 | . . 20 Launcher 9 | . . 9 Special . | . . . Kinetic 38 | . 38 . Thermal 20 | . . 20 Explosive 9 | . . 9 Electromagnetic . | . . . Robot Hit Streak 4 | . 4 3 Robot Miss Streak 3 | . 3 2 Penetration Max . | . . . Secondary Targets 1 | . 1 . Max Gunslinging Chain 1 | . 1 . Shots Hit Robots 32 | . 19 13 Core Hits 16 | . 4 12 Critical Kills . | . . . Critical Parts Destroyed . | . . . Critical Strikes . | . . . Melee Attacks . | . . . Impact . | . . . Slashing . | . . . Piercing . | . . . Sneak Attacks . | . . . Combat Hostiles . | . . . Follow-up Attacks . | . . . Damage Inflicted 661 | . 208 453 Guns 208 | . 208 . Cannons 176 | . . 176 Explosions 277 | . . 277 Melee . | . . . Ramming . | . . . Kinetic 208 | . 208 . Thermal 176 | . . 176 Explosive 277 | . . 277 Electromagnetic . | . . . Impact . | . . . Slashing . | . . . Piercing . | . . . Highest Corruption . | . . . Average Corruption . | . . . Corruption Purged . | . . . Corruption Blocked . | . . . Overload Shots . | . . . Overflow Damage . | . . . Projectiles . | . . . Explosions . | . . . Melee . | . . . Knockbacks . | . . . Impact . | . . . Kinetic . | . . . Secondary . | . . . Self-Inflicted Damage 58 | . . 58 Shots 2 | . . 2 Rammed . | . . . Targets Rammed 1 | . . 1 Kicked 1 | . . 1 Crushed . | . . . Highest Temperature 176 | . . 176 Average Temperature 61 | . . 61 Received Heat Transfer 83 | . . 83 Siege Activations . | . . . Robots Corrupted . | . . . Combat Hostiles . | . . . Parts Fried . | . . . Impact Corruptions . | . . . Robots Melted . | . . . Combat Hostiles . | . . . Parts Melted . | . . . Heat Transferred 370 | . . 370 Parts Sabotaged . | . . . Parts Stolen . | . . . Parts Stripped . | . . . Power Chain Reactions . | . . . Alert | -11 -10 -10 ------- Run | Yrd Mat Min Peak Influence 142 | . 99 142 Initial . | . . . Average 61 | . 47 72 Maximum Alert Level . | . . . Low Security (%) 100 | 100 100 100 Level 1 . | . . . Level 2 . | . . . Level 3 . | . . . Level 4 . | . . . Level 5 . | . . . High Security . | . . . Max Security . | . . . Squads Dispatched 1 | . 1 . Investigation . | . . . Extermination . | . . . Reinforcement 1 | . 1 . Assault . | . . . Garrison . | . . . Intercept . | . . . Searches Triggered . | . . . Construction Impeded . | . . . Haulers Reinforced . | . . . Active Scanning Responses . | . . . Cargo Convoy Interrupts . | . . . Stealth | -11 -10 -10 --------- Run | Yrd Mat Min Distress Signals . | . . . Communications Jammed . | . . . Distress Signals . | . . . Times Spotted 24 | . 6 18 Peak Tracking Total 10 | . 3 10 Tactical Retreats . | . . . Traps | -11 -10 -10 ------- Run | Yrd Mat Min Traps Triggered . | . . . Indirectly . | . . . Trap Hack Attempts . | . . . Triggered . | . . . Disarmed . | . . . Reprogrammed . | . . . Reused . | . . . Traps Extracted . | . . . Installed . | . . . Triggered . | . . . Machines | -11 -10 -10 ---------- Run | Yrd Mat Min Machines Disabled 2 | . . 2 Max in Single Turn 2 | . . 2 Machines Repaired . | . . . Machines Dismantled . | . . . Machines Sabotaged . | . . . Overloaded Fab Kills . | . . . Hacking | -11 -10 -10 --------- Run | Yrd Mat Min Machines Accessed 2 | . 1 1 Terminals 2 | . 1 1 Fabricators . | . . . Repair Stations . | . . . Recycling Units . | . . . Scanalyzers . | . . . Garrison Access . | . . . Total Hacks 8 | . 5 3 Successful 4 | . 2 2 Failed 4 | . 3 1 Catastrophic . | . . . Database Lockouts . | . . . Manual 9 | . 6 3 Terminals 8 | . 5 3 Fabricators . | . . . Repair Stations . | . . . Recycling Units . | . . . Scanalyzers . | . . . Garrison Access . | . . . Terminal Hacks 3 | . 1 2 Part Schematic 2 | . 1 1 Zone Layout 1 | . . 1 Fabricator Hacks . | . . . Repair Station Hacks . | . . . Recycling Unit Hacks . | . . . Scanalyzer . | . . . Garrison Access Hacks . | . . . Unauthorized Hacks 1 | . 1 . Terminals 1 | . 1 . Botnet 1 | . 1 . Fabricators . | . . . Repair Stations . | . . . Recycling Units . | . . . Scanalyzers . | . . . Garrison Access . | . . . Data Cores Recovered . | . . . Used . | . . . Hacking Detections 2 | . 1 1 Full Trace Events 1 | . 1 . Feedback Events . | . . . Feedback Blocked . | . . . Robot Schematics Acquired . | . . . Robots Built . | . . . Authchips . | . . . Time . | . . . Total Robot Build Rating . | . . . Part Schematics Acquired 2 | . 1 1 Parts Built . | . . . Authchips . | . . . Time . | . . . Total Part Build Rating . | . . . Parts Repaired . | . . . Time . | . . . Parts Recycled . | . . . Recycled Matter . | . . . Retrieved Matter . | . . . Retrieved Components . | . . . Parts Scanalyzed . | . . . Part Schematics Acquired . | . . . Parts Damaged . | . . . Bothacking | -11 -10 -10 ------------ Run | Yrd Mat Min Used RIF Installer . | . . . Robots Hacked . | . . . Non-combat . | . . . Combat . | . . . Robot Hacks Applied . | . . . Relay Couplers Released . | . . . Fabnet Peak Effective % . | . . . Robots Rewired . | . . . Allies Hacked . | . . . Hacks Repelled . | . . . Allies | -11 -10 -10 -------- Run | Yrd Mat Min Total Allies . | . . . Largest Group . | . . . Highest-Rated Group . | . . . Highest-Rated Ally . | . . . Total Orders . | . . . Ally Attacks . | . . . Total Damage . | . . . Kills . | . . . Allies Corrupted . | . . . Allies Melted . | . . . Intel | -11 -10 -10 ------- Run | Yrd Mat Min Robot Analysis Total . | . . . Derelict Logs Recovered . | . . . Drone Launches . | . . . Drone Recoveries . | . . . Exploration | -11 -10 -10 ------------- Run | Yrd Mat Min Turns Passed 1266 | 5 545 716 Spaces Moved 700 | 5 346 349 Core . | . . . Treads . | . . . Legs 694 | 5 346 343 Wheels . | . . . Hover . | . . . Flight 6 | . . 6 Fastest Speed 117 | 120 120 117 Average Speed 161 | 120 136 187 Slowest Speed 190 | 120 190 190 Overloaded Moves . | . . . Propulsion Burnouts . | . . . Robots Hopped . | . . . Cave-ins Triggered . | . . . Exploration Rate (%) 35 | 2 40 64 Regions Visited 2 Branch Regions 1 Pre-discovered Areas . | . . . Known Exits Taken . | . . . Unknown Exits Taken 2 | 1 1 . Scrap Searched . | . . . Spaces Dug 10 | . . 10 Terrain Destroyed 74 | . . 74 Melee . | . . . Projectile . | . . . AOE 74 | . . 74 Terrain Rammed . | . . . Walls Destroyed . | . . . Machines Disabled . | . . . Actions | -11 -10 -10 --------- Run | Yrd Mat Min Total 774 | 4 387 383 Wait 3 | . 2 1 Move 698 | 4 345 349 Hop . | . . . Pick Up 12 | . 10 2 Fast Attach . | . . . Attach 4 | . 1 3 Detach . | . . . Swap 4 | . 2 2 Drop 12 | . 7 5 Fire 40 | . 20 20 Melee . | . . . Ram . | . . . Kick 1 | . . 1 Crush . | . . . Escape Stasis . | . . . Rewire . | . . . Trap . | . . . Miscellaneous . | . . . Route ------- -11/Scrapyard -10/Materials -10/Mines (discovered 1 exit: [*Mat]) History --------- Turn | Location | Event 1 | -11/Scrapyard | Discovered new exit (range 3) 6 | -11/Scrapyard | Entered Materials 314 | -10/Materials | Build established: Mutant 337 | -10/Materials | Discovered new exit (range 6) 551 | -10/Materials | Entered Mines 605 | -10/Mines | Met a Derelict bent on vengeance 696 | -10/Mines | Discovered new exit (range 5) 931 | -10/Mines | Found a hidden stash of uninstalled traps 970 | -10/Mines | Core integrity fell below 50% 1237 | -10/Mines | Assembled infested the area 1242 | -10/Mines | Assisted by a Guerilla fighting off Assembled 1264 | -10/Mines | Core integrity fell below 20% 1267 | -10/Mines | Destroyed by as-70070 with Assembled Rifle Last Messages --------------- ahead or try to find another way!" 01240_ HV Slug penetrates Y-45 Defender. 01240_ HV Slug penetrates Wall. 01240_ Machine disabled. 01242_ A derelict emerges from the shadows: "You need to get out of here! I've been tracking a group of Assembled to figure out where they're coming from, and they're closing on this area, come on!" 01242_ Ion Engine destroyed. 01243_ The unstable cave ceiling collapses. 01243_ Y-45 Defender destroyed. 01245_ Grenade Launcher destroyed. 01252_ T-07 Excavator destroyed. 01252_ B5-7XP(h) suffers critical hit (Burn). 01253_ Aluminum Leg destroyed. 01257_ Beam Cannon destroyed. 01259_ B5-7XP(h) destroyed. 01260_ Dropped Sml. Storage Unit. 01262_ The unstable cave ceiling collapses. Map ----- +----------------------------------------------------+ | | | | | | | | | | | | | | | | | ??????????????? ???????????????????????????? | | ??????????????## = ??????????????######???????? | | ?????????????## % ?????????????## ##??????? | | ?????????????##!] ! ####?????????## #??????? | | ??????????????# ! ! # ##?????#### #??????? | | ????##########?# ? #?????# ##??????? | | ??? ##//### #?????# ## #???????? | | ??? ##????# ### #???????? | | ??????????#### ##???# #?## #???????? | | ?????????????## * ###?# #??## ##????#### | | ??????????????## |%= a### ###### #????## # | | ???????????????#### !##! a ### ###### | | ??????????????????######### a ## ## & ## | | ???????????????????########aa ## ## & | | ??????????????????## ##a ### ##### & ### | | ???????????######## ##?# #???# ##### | | ?????????? a a ##??# #???## ##?### | | ?????????????###### @###??# #????## ##??# | | ??????????????????# ##???# #?????# #???# # | | ??????????????????## ##???# #?????## ##???# # | | ???????????????????### ##??? ???????###????# | | ?????????????????????## #??? ????????????### # | | ?????????????????????## = #??? ???????????## | | ?????????????????????### #??? ???????????# | | ??????????????????????## ###??? ???????????# | | ????????????????????#### ##???? ???????????## | | ????????????????????# ##???? ????????????### # | | ????????????????????# ##???????????????????##? | | ????????????????????# ####??????????????????????? | | ????????????????????# #?????????????????????##### | | ????????????????????# #????????????????# | | ?????????????# #???# #?????????????????????##### | | ?????????????# ##?# #?????????????????????????# | | ????????????## #?# #????????????????????????## | | ????????????# ### #????????????????? | | ????????????# ## #??????????????? | | ?????????????# ## #???????????????? #### | | ????????????## ## ###?????????????? ????# | | ?????????#### # ####???????????? ??????# | | ???????? #???????????? ???????# | | ???????? ### #????????????????????# | | ?????????#### ##??#????????????????????# | +----------------------------------------------------+ Best States ------------- Heat Dissipation 25 Energy Generation 10 Energy Capacity 250 Matter Stores 300 Matter Capacity 300 Sight Range 16 Terrain Scan Density 10 Evasion (%) 55 Item Schematics ----------------- Grenade Launcher | -10/Materials | Hacked Flight Unit | -10/Mines | Hacked Robot Schematics ------------------ None Fabricated ------------ Nothing Alien Tech Used ----------------- None Achievements -------------- None Challenges ------------ None Game ------ Seed LongswordOvertunedLaser Manual? 0 Play Time 00:18:59 Cumulative 38.8 hours Start 2025.01.12 @ 09:25:50 End 2025.03.25 @ 14:37:41 Sessions 3 Manual Loads 0 Difficulty Rogue Special Mode None Game No. 44 Rogue 44 Adventurer 0 Explorer 0 Win Type - Total 0 Types 0/0/0/0/0/0/0/0/0 Lore% 22 Gallery% 35 Achievement% 29 Wizard Run 0 Options --------- Layout 1 ASCII 0 Keyboard 0 Movement Mouse Keybinds 0 Fullscreen 2 Font 48/Smallcaps Map View 50x35 Zoom Use 0% Tactical HUD 1 Map Filters NONE Filters NONE Steam 1 RUN: ac42ec71-b664-4c31-a81a-ba1f5e46910d